[Event "Late-Titled-Tuesday-Blitz-December-26-2023"]
[Site "Chess.com"]
[Date "2023.12.26"]
[Round "3"]
[White "FREZZY23"]
[Black "FoxOnTheRun97"]
[Result "0-1"]
[WhiteElo "2393"]
[BlackElo "2562"]
[TimeControl "180+1"]
[EndTime "14:30:33 PST"]
[Termination "FoxOnTheRun97 won by checkmate"]

1. Nf3 {[%clk 0:03:00.2]} 1... d5 {[%clk 0:02:59.7]} 2. g3 {[%clk 0:03:00.5]}
2... Nf6 {[%clk 0:02:59.6]} 3. Bg2 {[%clk 0:03:01.1]} 3... Bf5 {[%clk
0:03:00.2]} 4. O-O {[%clk 0:03:01.7]} 4... e6 {[%clk 0:02:58.7]} 5. d4 {[%clk
0:03:02.3]} 5... b5 {[%clk 0:02:56]} 6. c4 {[%clk 0:03:03.2]} 6... bxc4 {[%clk
0:02:56.1]} 7. Ne5 {[%clk 0:02:57]} 7... Nfd7 {[%clk 0:02:47.3]} 8. Nxc4 {[%clk
0:02:55.6]} 8... Be7 {[%clk 0:02:41.5]} 9. Nc3 {[%clk 0:02:48.5]} 9... O-O
{[%clk 0:02:36.9]} 10. e4 {[%clk 0:02:36.3]} 10... dxe4 {[%clk 0:02:17.4]} 11.
Nxe4 {[%clk 0:02:36.1]} 11... c6 {[%clk 0:02:08]} 12. Bf4 {[%clk 0:02:31.9]}
12... Nb6 {[%clk 0:02:04.8]} 13. Rc1 {[%clk 0:02:11.8]} 13... Nxc4 {[%clk
0:01:59]} 14. Rxc4 {[%clk 0:02:10.5]} 14... Qb6 {[%clk 0:01:55.8]} 15. b3 {[%clk
0:02:05.4]} 15... Nd7 {[%clk 0:01:54.4]} 16. Rxc6 {[%clk 0:02:00.6]} 16... Qa5
{[%clk 0:01:48.9]} 17. Nc3 {[%clk 0:01:46]} 17... Rac8 {[%clk 0:01:41.7]} 18. d5
{[%clk 0:01:42.5]} 18... Bf6 {[%clk 0:01:29.5]} 19. dxe6 {[%clk 0:01:06.1]}
19... Bxe6 {[%clk 0:01:30.4]} 20. Rxc8 {[%clk 0:01:05.1]} 20... Rxc8 {[%clk
0:01:29.2]} 21. Nd5 {[%clk 0:01:05.6]} 21... Bxd5 {[%clk 0:01:24]} 22. Qxd5
{[%clk 0:01:04.8]} 22... Qxd5 {[%clk 0:01:19.4]} 23. Bxd5 {[%clk 0:01:05.7]}
23... Nb6 {[%clk 0:01:18]} 24. Bf3 {[%clk 0:01:04.2]} 24... Rc2 {[%clk
0:01:17.5]} 25. a4 {[%clk 0:01:02.8]} 25... Rc3 {[%clk 0:01:15.9]} 26. Re1
{[%clk 0:00:49.9]} 26... g5 {[%clk 0:01:13.1]} 27. Re8+ {[%clk 0:00:44.5]} 27...
Kg7 {[%clk 0:01:12.4]} 28. Be3 {[%clk 0:00:44.7]} 28... Rxb3 {[%clk 0:01:06.6]}
29. a5 {[%clk 0:00:43.8]} 29... Nc4 {[%clk 0:01:02]} 30. Bd5 {[%clk 0:00:43.9]}
30... Rb1+ {[%clk 0:01:00.8]} 31. Kg2 {[%clk 0:00:40.4]} 31... Nxe3+ {[%clk
0:01:01.2]} 32. Rxe3 {[%clk 0:00:36.7]} 32... Rb5 {[%clk 0:01:01.8]} 33. Bb3
{[%clk 0:00:30.2]} 33... Rxa5 {[%clk 0:01:01.2]} 34. Rd3 {[%clk 0:00:30.8]}
34... Rb5 {[%clk 0:00:54.4]} 35. Ba2 {[%clk 0:00:30.2]} 35... Rb2 {[%clk
0:00:53.4]} 36. Bc4 {[%clk 0:00:30.2]} 36... Rb7 {[%clk 0:00:47.4]} 37. h3
{[%clk 0:00:25.6]} 37... a5 {[%clk 0:00:46]} 38. g4 {[%clk 0:00:21.1]} 38... Rc7
{[%clk 0:00:44.1]} 39. Bb3 {[%clk 0:00:20.2]} 39... Bc3 {[%clk 0:00:41.6]} 40.
Kg3 {[%clk 0:00:18.3]} 40... Bb4 {[%clk 0:00:39.9]} 41. f4 {[%clk 0:00:16.3]}
41... f6 {[%clk 0:00:31.5]} 42. fxg5 {[%clk 0:00:16]} 42... fxg5 {[%clk
0:00:32.4]} 43. Be6 {[%clk 0:00:15.4]} 43... Kf6 {[%clk 0:00:30.9]} 44. Bf5
{[%clk 0:00:15.3]} 44... h6 {[%clk 0:00:30.3]} 45. Rd7 {[%clk 0:00:14.1]} 45...
Rc3+ {[%clk 0:00:29.5]} 46. Rd3 {[%clk 0:00:14.2]} 46... Rc1 {[%clk 0:00:27.9]}
47. Re3 {[%clk 0:00:13]} 47... Bd6+ {[%clk 0:00:25.1]} 48. Kg2 {[%clk 0:00:13]}
48... Be5 {[%clk 0:00:24.8]} 49. Rb3 {[%clk 0:00:12.3]} 49... Rc6 {[%clk
0:00:23.4]} 50. Rb7 {[%clk 0:00:11.6]} 50... Bd4 {[%clk 0:00:14.7]} 51. Rh7
{[%clk 0:00:10.7]} 51... Ke5 {[%clk 0:00:15.1]} 52. Re7+ {[%clk 0:00:10.8]}
52... Kf6 {[%clk 0:00:12.2]} 53. Rh7 {[%clk 0:00:10.9]} 53... Rc3 {[%clk
0:00:11]} 54. Rxh6+ {[%clk 0:00:10.5]} 54... Ke5 {[%clk 0:00:11.4]} 55. Re6+
{[%clk 0:00:10.8]} 55... Kd5 {[%clk 0:00:11.8]} 56. Rg6 {[%clk 0:00:10.8]} 56...
Be3 {[%clk 0:00:11.6]} 57. Ra6 {[%clk 0:00:07.5]} 57... Ra3 {[%clk 0:00:10.7]}
58. Ra8 {[%clk 0:00:07.1]} 58... Bf4 {[%clk 0:00:10.7]} 59. Rf8 {[%clk
0:00:05.4]} 59... a4 {[%clk 0:00:10.1]} 60. Bg6 {[%clk 0:00:05]} 60... Kd6
{[%clk 0:00:09.6]} 61. h4 {[%clk 0:00:05.2]} 61... Ra2+ {[%clk 0:00:09.3]} 62.
Kf3 {[%clk 0:00:05.4]} 62... Ra3+ {[%clk 0:00:09.4]} 63. Ke4 {[%clk 0:00:06]}
63... Re3+ {[%clk 0:00:09.3]} 64. Kd4 {[%clk 0:00:06.6]} 64... Rg3 {[%clk
0:00:08.3]} 65. Rf6+ {[%clk 0:00:06]} 65... Ke7 {[%clk 0:00:08]} 66. Rf5 {[%clk
0:00:06.4]} 66... Rxg4 {[%clk 0:00:07.4]} 67. hxg5 {[%clk 0:00:06.9]} 67...
Bxg5+ {[%clk 0:00:07.3]} 68. Kd5 {[%clk 0:00:06.1]} 68... Bf6 {[%clk 0:00:06.9]}
69. Rf1 {[%clk 0:00:05.2]} 69... Rxg6 {[%clk 0:00:06.5]} 70. Rf4 {[%clk
0:00:05.2]} 70... Rg5+ {[%clk 0:00:06.5]} 71. Kc6 {[%clk 0:00:05]} 71... a3
{[%clk 0:00:05.2]} 72. Ra4 {[%clk 0:00:03]} 72... Bb2 {[%clk 0:00:04.8]} 73.
Re4+ {[%clk 0:00:03.4]} 73... Kf6 {[%clk 0:00:05.2]} 74. Rf4+ {[%clk 0:00:03.4]}
74... Ke5 {[%clk 0:00:05.4]} 75. Ra4 {[%clk 0:00:04]} 75... Rg3 {[%clk
0:00:04.7]} 76. Kc5 {[%clk 0:00:04.4]} 76... Rc3+ {[%clk 0:00:04.1]} 77. Kb4
{[%clk 0:00:04.8]} 77... Rc8 {[%clk 0:00:04.2]} 78. Ra5+ {[%clk 0:00:04.8]}
78... Kd4 {[%clk 0:00:04.6]} 79. Kb3 {[%clk 0:00:04.7]} 79... Rb8+ {[%clk
0:00:04.2]} 80. Ka2 {[%clk 0:00:05.3]} 80... Kc3 {[%clk 0:00:04.4]} 81. Rc5+
{[%clk 0:00:05.4]} 81... Kb4 {[%clk 0:00:04.5]} 82. Rh5 {[%clk 0:00:05.4]} 82...
Rd8 {[%clk 0:00:03.2]} 83. Rh4+ {[%clk 0:00:04.8]} 83... Bd4 {[%clk 0:00:03.8]}
84. Rh3 {[%clk 0:00:03.8]} 84... Bc5 {[%clk 0:00:03]} 85. Rb3+ {[%clk
0:00:02.2]} 85... Kc4 {[%clk 0:00:03.1]} 86. Rb1 {[%clk 0:00:01.9]} 86... Rd2+
{[%clk 0:00:03.7]} 87. Ka1 {[%clk 0:00:01.7]} 87... Bd4+ {[%clk 0:00:04.2]} 88.
Rb2 {[%clk 0:00:02.4]} 88... axb2+ {[%clk 0:00:04.5]} 89. Kb1 {[%clk 0:00:03.3]}
89... Rd1+ {[%clk 0:00:04.6]} 90. Ka2 {[%clk 0:00:04.2]} 90... Ra1# {[%clk
0:00:04.8]} 0-1

[Event "Late-Titled-Tuesday-Blitz-December-26-2023"]
[Site "Chess.com"]
[Date "2023.12.26"]
[Round "3"]
[White "Doraemon7"]
[Black "Nf3c5"]
[Result "1/2-1/2"]
[WhiteElo "2681"]
[BlackElo "2479"]
[TimeControl "180+1"]
[EndTime "14:30:39 PST"]
[Termination "Game drawn - insufficient material"]

1. Nf3 {[%clk 0:02:59.5]} 1... d5 {[%clk 0:02:57.9]} 2. d4 {[%clk 0:02:56.4]}
2... Nf6 {[%clk 0:02:55.8]} 3. c4 {[%clk 0:02:53.6]} 3... e6 {[%clk 0:02:50.1]}
4. g3 {[%clk 0:02:53.4]} 4... Be7 {[%clk 0:02:46.3]} 5. Bg2 {[%clk 0:02:53.6]}
5... O-O {[%clk 0:02:46.8]} 6. O-O {[%clk 0:02:54.3]} 6... dxc4 {[%clk
0:02:47.4]} 7. Qc2 {[%clk 0:02:48.3]} 7... b5 {[%clk 0:02:46.6]} 8. a4 {[%clk
0:02:48.1]} 8... Bb7 {[%clk 0:02:32.8]} 9. axb5 {[%clk 0:02:45.6]} 9... a6
{[%clk 0:02:26.5]} 10. bxa6 {[%clk 0:02:27.5]} 10... Nxa6 {[%clk 0:02:15.7]} 11.
Qxc4 {[%clk 0:02:27.1]} 11... Bd5 {[%clk 0:02:06.6]} 12. Qc2 {[%clk 0:02:17.7]}
12... c5 {[%clk 0:02:00.5]} 13. dxc5 {[%clk 0:01:59.3]} 13... Be4 {[%clk
0:01:29.6]} 14. Qc4 {[%clk 0:01:37.8]} 14... Bd5 {[%clk 0:01:25.3]} 15. Qc2
{[%clk 0:01:23.5]} 15... Be4 {[%clk 0:01:23.9]} 16. Qd2 {[%clk 0:01:16.2]} 16...
Nxc5 {[%clk 0:01:12.6]} 17. Rxa8 {[%clk 0:01:13.9]} 17... Qxa8 {[%clk 0:01:12]}
18. Nc3 {[%clk 0:01:14.4]} 18... Rd8 {[%clk 0:01:03.8]} 19. Qf4 {[%clk
0:01:00.7]} 19... Nd5 {[%clk 0:00:57]} 20. Nxd5 {[%clk 0:00:59.2]} 20... Qxd5
{[%clk 0:00:54]} 21. Be3 {[%clk 0:00:53.1]} 21... Nb3 {[%clk 0:00:50.9]} 22. h4
{[%clk 0:00:30.2]} 22... Bf6 {[%clk 0:00:50.5]} 23. Ne1 {[%clk 0:00:21.4]} 23...
Bxg2 {[%clk 0:00:47.6]} 24. Nxg2 {[%clk 0:00:22.3]} 24... Bxb2 {[%clk
0:00:43.7]} 25. Rb1 {[%clk 0:00:23]} 25... Be5 {[%clk 0:00:40.7]} 26. Qb4 {[%clk
0:00:19]} 26... Nd4 {[%clk 0:00:40]} 27. Bxd4 {[%clk 0:00:18.1]} 27... Qxd4
{[%clk 0:00:37.8]} 28. Qxd4 {[%clk 0:00:16.3]} 28... Bxd4 {[%clk 0:00:38.1]} 29.
e3 {[%clk 0:00:14.6]} 29... Bf6 {[%clk 0:00:38.1]} 30. Ne1 {[%clk 0:00:14.4]}
30... h5 {[%clk 0:00:37.5]} 31. Nf3 {[%clk 0:00:14.6]} 31... g6 {[%clk 0:00:38]}
32. Kg2 {[%clk 0:00:15.5]} 32... Kg7 {[%clk 0:00:38.3]} 33. Rb5 {[%clk
0:00:15.6]} 33... Rd7 {[%clk 0:00:38.3]} 34. Rb6 {[%clk 0:00:16]} 34... Ra7
{[%clk 0:00:37.8]} 35. Rb5 {[%clk 0:00:16.4]} 35... Rd7 {[%clk 0:00:37.3]} 36.
Nh2 {[%clk 0:00:16.6]} 36... Ra7 {[%clk 0:00:37]} 37. Kf3 {[%clk 0:00:16.8]}
37... Ra2 {[%clk 0:00:36.3]} 38. Rb7 {[%clk 0:00:16.3]} 38... Bc3 {[%clk
0:00:36.4]} 39. Rb1 {[%clk 0:00:03.6]} 39... f5 {[%clk 0:00:33.3]} 40. Nf1
{[%clk 0:00:03.8]} 40... e5 {[%clk 0:00:33.3]} 41. Rc1 {[%clk 0:00:04.4]} 41...
e4+ {[%clk 0:00:33.5]} 42. Kg2 {[%clk 0:00:05.2]} 42... Be5 {[%clk 0:00:31.4]}
43. Rc5 {[%clk 0:00:05.3]} 43... Kf6 {[%clk 0:00:31.5]} 44. Rc6+ {[%clk
0:00:05.6]} 44... Kg7 {[%clk 0:00:31.4]} 45. Rc5 {[%clk 0:00:06.2]} 45... Bf6
{[%clk 0:00:30.3]} 46. Rc7+ {[%clk 0:00:06.2]} 46... Kf8 {[%clk 0:00:30.5]} 47.
Rc1 {[%clk 0:00:06.6]} 47... Rb2 {[%clk 0:00:30]} 48. Rd1 {[%clk 0:00:06.9]}
48... Ke7 {[%clk 0:00:29.6]} 49. Nd2 {[%clk 0:00:06.6]} 49... Rb4 {[%clk
0:00:27.6]} 50. Nb1 {[%clk 0:00:06.3]} 50... Bb2 {[%clk 0:00:26.3]} 51. Rd2
{[%clk 0:00:05.4]} 51... Ke6 {[%clk 0:00:26.6]} 52. Rc2 {[%clk 0:00:05.5]} 52...
Be5 {[%clk 0:00:25.8]} 53. Nd2 {[%clk 0:00:06.1]} 53... Ra4 {[%clk 0:00:23.9]}
54. Nc4 {[%clk 0:00:06.6]} 54... Bf6 {[%clk 0:00:21.8]} 55. Nd2 {[%clk
0:00:07.1]} 55... Rb4 {[%clk 0:00:21.1]} 56. Nc4 {[%clk 0:00:06.8]} 56... Be7
{[%clk 0:00:20.6]} 57. Na5 {[%clk 0:00:06]} 57... Rb6 {[%clk 0:00:18.6]} 58. Nc6
{[%clk 0:00:05.6]} 58... Bd6 {[%clk 0:00:17.3]} 59. Nd4+ {[%clk 0:00:05.9]}
59... Kd5 {[%clk 0:00:17.8]} 60. Rc8 {[%clk 0:00:05.5]} 60... Bc5 {[%clk
0:00:16.2]} 61. Rd8+ {[%clk 0:00:05.5]} 61... Kc4 {[%clk 0:00:14.6]} 62. Rg8
{[%clk 0:00:03.6]} 62... Bxd4 {[%clk 0:00:14.5]} 63. exd4 {[%clk 0:00:04.5]}
63... Kxd4 {[%clk 0:00:15]} 64. Rd8+ {[%clk 0:00:04.8]} 64... Ke5 {[%clk
0:00:15.2]} 65. Rd2 {[%clk 0:00:05.4]} 65... Rb3 {[%clk 0:00:15]} 66. Rc2 {[%clk
0:00:06]} 66... Rb5 {[%clk 0:00:14.8]} 67. Rc4 {[%clk 0:00:06.3]} 67... Rb6
{[%clk 0:00:14.8]} 68. Rc2 {[%clk 0:00:06.7]} 68... Kf6 {[%clk 0:00:15.2]} 69.
Rc5 {[%clk 0:00:07]} 69... Re6 {[%clk 0:00:14.9]} 70. Rc2 {[%clk 0:00:07.6]}
70... g5 {[%clk 0:00:15.1]} 71. hxg5+ {[%clk 0:00:07.6]} 71... Kxg5 {[%clk
0:00:16]} 72. Rc5 {[%clk 0:00:08.1]} 72... Kg4 {[%clk 0:00:15.6]} 73. Rc8 {[%clk
0:00:08.1]} 73... Kg5 {[%clk 0:00:15]} 74. Rg8+ {[%clk 0:00:08.5]} 74... Rg6
{[%clk 0:00:15.9]} 75. Rc8 {[%clk 0:00:09.3]} 75... h4 {[%clk 0:00:16.2]} 76.
Kh3 {[%clk 0:00:09]} 76... hxg3 {[%clk 0:00:16.6]} 77. fxg3 {[%clk 0:00:09.5]}
77... Rh6+ {[%clk 0:00:17]} 78. Kg2 {[%clk 0:00:10.2]} 78... Rd6 {[%clk
0:00:17.7]} 79. Rg8+ {[%clk 0:00:10]} 79... Kf6 {[%clk 0:00:18.2]} 80. Rc8
{[%clk 0:00:10.7]} 80... Rd2+ {[%clk 0:00:17.5]} 81. Kh3 {[%clk 0:00:11.3]}
81... Rd3 {[%clk 0:00:17.6]} 82. Re8 {[%clk 0:00:11.6]} 82... f4 {[%clk
0:00:17.3]} 83. Rf8+ {[%clk 0:00:10.7]} 83... Ke5 {[%clk 0:00:16.2]} 84. Rxf4
{[%clk 0:00:11.6]} 84... e3 {[%clk 0:00:15.9]} 85. Rf1 {[%clk 0:00:11.8]} 85...
e2 {[%clk 0:00:15.9]} 86. Re1 {[%clk 0:00:11.7]} 86... Rd2 {[%clk 0:00:16.2]}
87. Kg2 {[%clk 0:00:12.2]} 87... Ke4 {[%clk 0:00:17.1]} 88. Kf2 {[%clk
0:00:13.1]} 88... Kd3 {[%clk 0:00:17.8]} 89. g4 {[%clk 0:00:13.7]} 89... Ra2
{[%clk 0:00:17.7]} 90. g5 {[%clk 0:00:13.9]} 90... Ra8 {[%clk 0:00:17.9]} 91.
Rxe2 {[%clk 0:00:14.1]} 91... Rf8+ {[%clk 0:00:18.5]} 92. Ke1 {[%clk 0:00:14.8]}
92... Rg8 {[%clk 0:00:18.2]} 93. Re5 {[%clk 0:00:14.7]} 93... Kd4 {[%clk
0:00:18.1]} 94. Ra5 {[%clk 0:00:15.1]} 94... Ke4 {[%clk 0:00:18.6]} 95. Kf2
{[%clk 0:00:15.8]} 95... Kf4 {[%clk 0:00:19.2]} 96. Ra1 {[%clk 0:00:15.8]} 96...
Rxg5 {[%clk 0:00:19.3]} 97. Ra4+ {[%clk 0:00:16.4]} 97... Kf5 {[%clk 0:00:19.9]}
98. Kf3 {[%clk 0:00:17.2]} 98... Kg6 {[%clk 0:00:20.8]} 99. Ra6+ {[%clk
0:00:17.3]} 99... Kf5 {[%clk 0:00:20.4]} 100. Rb6 {[%clk 0:00:16.5]} 100... Rg6
{[%clk 0:00:20.5]} 101. Rb5+ {[%clk 0:00:16.5]} 101... Kf6 {[%clk 0:00:21]} 102.
Kf4 {[%clk 0:00:17.4]} 102... Rg1 {[%clk 0:00:21.6]} 103. Rb6+ {[%clk
0:00:17.9]} 103... Ke7 {[%clk 0:00:22.4]} 104. Ke5 {[%clk 0:00:18.5]} 104...
Re1+ {[%clk 0:00:22.5]} 105. Kd5 {[%clk 0:00:19.2]} 105... Rd1+ {[%clk
0:00:22.5]} 106. Kc6 {[%clk 0:00:20]} 106... Rc1+ {[%clk 0:00:23.1]} 107. Kb7
{[%clk 0:00:20.3]} 107... Kd7 {[%clk 0:00:22.8]} 108. Rb3 {[%clk 0:00:20.3]}
108... Rc6 {[%clk 0:00:21.9]} 109. Rd3+ {[%clk 0:00:19.7]} 109... Rd6 {[%clk
0:00:22.8]} 110. Rxd6+ {[%clk 0:00:19.9]} 110... Kxd6 {[%clk 0:00:22.7]} 1/2-1/2

[Event "Late-Titled-Tuesday-Blitz-December-26-2023"]
[Site "Chess.com"]
[Date "2023.12.26"]
[Round "4"]
[White "JuniorJumper"]
[Black "lucliasco"]
[Result "0-1"]
[WhiteElo "2493"]
[BlackElo "2899"]
[TimeControl "180+1"]
[EndTime "14:35:52 PST"]
[Termination "lucliasco won by resignation"]

1. b3 {[%clk 0:03:00.9]} 1... e5 {[%clk 0:02:58.6]} 2. Bb2 {[%clk 0:03:01.5]}
2... Nc6 {[%clk 0:02:58.1]} 3. e3 {[%clk 0:03:01.9]} 3... d6 {[%clk 0:02:56.6]}
4. Bb5 {[%clk 0:03:01.7]} 4... Bd7 {[%clk 0:02:55.8]} 5. Nf3 {[%clk 0:03:02]}
5... Nf6 {[%clk 0:02:54.9]} 6. d4 {[%clk 0:03:02.4]} 6... e4 {[%clk 0:02:52.5]}
7. Nfd2 {[%clk 0:03:02.4]} 7... d5 {[%clk 0:02:53.1]} 8. c4 {[%clk 0:03:02.5]}
8... Nb4 {[%clk 0:02:48.6]} 9. Bxd7+ {[%clk 0:03:01.5]} 9... Qxd7 {[%clk
0:02:49.5]} 10. O-O {[%clk 0:03:00.1]} 10... Nd3 {[%clk 0:02:50.1]} 11. Ba3
{[%clk 0:03:00.2]} 11... Bxa3 {[%clk 0:02:47.5]} 12. Nxa3 {[%clk 0:03:01.1]}
12... O-O {[%clk 0:02:47.6]} 13. Nc2 {[%clk 0:03:01.7]} 13... c6 {[%clk
0:02:42.4]} 14. Ne1 {[%clk 0:03:02]} 14... Nxe1 {[%clk 0:02:39.5]} 15. Rxe1
{[%clk 0:02:58.7]} 15... a5 {[%clk 0:02:39.3]} 16. f3 {[%clk 0:02:58]} 16...
exf3 {[%clk 0:02:38]} 17. Qxf3 {[%clk 0:02:58.4]} 17... Rfe8 {[%clk 0:02:35.5]}
18. Rad1 {[%clk 0:02:57.8]} 18... a4 {[%clk 0:02:31.3]} 19. e4 {[%clk
0:02:57.2]} 19... axb3 {[%clk 0:02:21.3]} 20. e5 {[%clk 0:02:53.4]} 20... bxa2
{[%clk 0:02:18.5]} 21. Rf1 {[%clk 0:01:41.5]} 21... Ne4 {[%clk 0:02:04.9]} 22.
Nxe4 {[%clk 0:01:41.3]} 22... dxe4 {[%clk 0:02:05.8]} 23. Qxe4 {[%clk 0:01:42]}
23... b5 {[%clk 0:02:03.6]} 24. cxb5 {[%clk 0:01:35.9]} 24... cxb5 {[%clk
0:02:04.5]} 25. d5 {[%clk 0:01:36.4]} 25... Qa7+ {[%clk 0:02:04.5]} 26. Kh1
{[%clk 0:01:34.7]} 26... a1=Q {[%clk 0:02:05]} 27. e6 {[%clk 0:01:32]} 27...
fxe6 {[%clk 0:02:01.3]} 28. dxe6 {[%clk 0:01:32.8]} 28... Q1a4 {[%clk
0:01:54.2]} 29. Qd4 {[%clk 0:01:31.4]} 0-1

[Event "Late-Titled-Tuesday-Blitz-December-26-2023"]
[Site "Chess.com"]
[Date "2023.12.26"]
[Round "4"]
[White "NoHeThTo"]
[Black "AlexanderL"]
[Result "1-0"]
[WhiteElo "2685"]
[BlackElo "2882"]
[TimeControl "180+1"]
[EndTime "14:36:10 PST"]
[Termination "NoHeThTo won by resignation"]

1. d4 {[%clk 0:03:00.9]} 1... e6 {[%clk 0:03:00.9]} 2. Nc3 {[%clk 0:03:00.5]}
2... Bb4 {[%clk 0:02:56.9]} 3. Qd3 {[%clk 0:02:59.6]} 3... d5 {[%clk 0:02:55.6]}
4. Bf4 {[%clk 0:02:57.2]} 4... c5 {[%clk 0:02:55.1]} 5. dxc5 {[%clk 0:02:48.1]}
5... Nc6 {[%clk 0:02:51.5]} 6. a3 {[%clk 0:02:44.8]} 6... Bxc5 {[%clk
0:02:49.6]} 7. Nf3 {[%clk 0:02:44.8]} 7... Nf6 {[%clk 0:02:48]} 8. e3 {[%clk
0:02:39]} 8... O-O {[%clk 0:02:47.6]} 9. Be2 {[%clk 0:02:36.9]} 9... Bd6 {[%clk
0:02:47.8]} 10. Bxd6 {[%clk 0:02:36.4]} 10... Qxd6 {[%clk 0:02:48.7]} 11. e4
{[%clk 0:02:35.7]} 11... Ne5 {[%clk 0:02:40.1]} 12. Nxe5 {[%clk 0:02:33.6]}
12... Qxe5 {[%clk 0:02:41]} 13. exd5 {[%clk 0:02:34.1]} 13... exd5 {[%clk
0:02:41.4]} 14. Qg3 {[%clk 0:02:22.1]} 14... Qe7 {[%clk 0:02:40.8]} 15. O-O-O
{[%clk 0:02:20.5]} 15... Be6 {[%clk 0:02:34.3]} 16. Bf3 {[%clk 0:02:19.1]} 16...
Rfd8 {[%clk 0:02:34.4]} 17. Qe5 {[%clk 0:02:14.4]} 17... Qc5 {[%clk 0:02:27.2]}
18. Qd4 {[%clk 0:02:13]} 18... Qc7 {[%clk 0:02:21]} 19. g3 {[%clk 0:02:07.4]}
19... Rac8 {[%clk 0:02:15.7]} 20. Rhe1 {[%clk 0:02:06.9]} 20... a6 {[%clk
0:02:15.4]} 21. Re3 {[%clk 0:02:01.8]} 21... b5 {[%clk 0:02:15.3]} 22. Red3
{[%clk 0:01:57.9]} 22... Rb8 {[%clk 0:02:13.2]} 23. Qf4 {[%clk 0:01:51.9]} 23...
Qc6 {[%clk 0:01:59.8]} 24. Bxd5 {[%clk 0:01:39.3]} 24... Nxd5 {[%clk 0:01:57.7]}
25. Nxd5 {[%clk 0:01:37.6]} 25... Kh8 {[%clk 0:01:55.8]} 26. Nb4 {[%clk
0:01:30.9]} 26... Qa8 {[%clk 0:01:55.1]} 27. Rxd8+ {[%clk 0:01:28.3]} 27... Rxd8
{[%clk 0:01:56]} 28. Rxd8+ {[%clk 0:01:28.2]} 28... Qxd8 {[%clk 0:01:56.9]} 29.
Nxa6 {[%clk 0:01:28.5]} 29... h6 {[%clk 0:01:56.7]} 30. Qb8 {[%clk 0:01:28.3]}
30... Bc8 {[%clk 0:01:55.1]} 31. Nb4 {[%clk 0:01:22.3]} 31... Kh7 {[%clk
0:01:52.1]} 32. Qxb5 {[%clk 0:01:21.1]} 32... Qd4 {[%clk 0:01:52.2]} 33. Qd3+
{[%clk 0:01:20.9]} 1-0

[Event "Late-Titled-Tuesday-Blitz-December-26-2023"]
[Site "Chess.com"]
[Date "2023.12.26"]
[Round "4"]
[White "Dr_crypt"]
[Black "HanSchut"]
[Result "1-0"]
[WhiteElo "2368"]
[BlackElo "2247"]
[TimeControl "180+1"]
[EndTime "14:36:32 PST"]
[Termination "Dr_crypt won by resignation"]

1. e4 {[%clk 0:02:59.7]} 1... c5 {[%clk 0:02:59.7]} 2. Nf3 {[%clk 0:02:58.7]}
2... d6 {[%clk 0:03:00.2]} 3. c3 {[%clk 0:02:57.3]} 3... Nf6 {[%clk 0:03:00.4]}
4. Bd3 {[%clk 0:02:57.6]} 4... a6 {[%clk 0:02:54.7]} 5. O-O {[%clk 0:02:57.3]}
5... b5 {[%clk 0:02:55]} 6. Re1 {[%clk 0:02:57.8]} 6... Bb7 {[%clk 0:02:55.5]}
7. Bc2 {[%clk 0:02:57.6]} 7... Nbd7 {[%clk 0:02:53.7]} 8. d4 {[%clk 0:02:57.6]}
8... Rc8 {[%clk 0:02:37.3]} 9. e5 {[%clk 0:02:51.3]} 9... dxe5 {[%clk
0:02:24.9]} 10. dxe5 {[%clk 0:02:52.2]} 10... Ng8 {[%clk 0:02:18.7]} 11. e6
{[%clk 0:02:51.3]} 11... fxe6 {[%clk 0:02:17]} 12. Ng5 {[%clk 0:02:51.2]} 12...
Ndf6 {[%clk 0:02:10.8]} 13. Bxh7 {[%clk 0:02:33.4]} 13... Nxh7 {[%clk
0:01:36.8]} 14. Qh5+ {[%clk 0:02:25.7]} 14... Kd7 {[%clk 0:01:36.7]} 15. Rd1+
{[%clk 0:02:19.7]} 15... Bd5 {[%clk 0:01:34.8]} 16. Nxh7 {[%clk 0:01:50]} 16...
Nf6 {[%clk 0:01:27.6]} 17. Nxf6+ {[%clk 0:01:49.6]} 17... exf6 {[%clk
0:00:59.4]} 18. Qxh8 {[%clk 0:01:49.3]} 18... f5 {[%clk 0:01:00]} 19. c4 {[%clk
0:01:42.3]} 19... bxc4 {[%clk 0:00:57.6]} 20. Nc3 {[%clk 0:01:42.1]} 20... Qg5
{[%clk 0:00:55.5]} 21. Bxg5 {[%clk 0:01:40.9]} 1-0

[Event "Late-Titled-Tuesday-Blitz-December-26-2023"]
[Site "Chess.com"]
[Date "2023.12.26"]
[Round "4"]
[White "DmitryMaximov"]
[Black "dosto07"]
[Result "1-0"]
[WhiteElo "2764"]
[BlackElo "2534"]
[TimeControl "180+1"]
[EndTime "14:36:41 PST"]
[Termination "DmitryMaximov won by resignation"]

1. e4 {[%clk 0:03:00.9]} 1... e5 {[%clk 0:02:59.8]} 2. Nf3 {[%clk 0:03:01]} 2...
Nc6 {[%clk 0:03:00.1]} 3. Bb5 {[%clk 0:03:01.1]} 3... a6 {[%clk 0:03:00.4]} 4.
Ba4 {[%clk 0:03:01.2]} 4... Nf6 {[%clk 0:03:00.9]} 5. O-O {[%clk 0:03:01.5]}
5... Be7 {[%clk 0:03:01.4]} 6. Re1 {[%clk 0:03:01.9]} 6... b5 {[%clk 0:03:01.7]}
7. Bb3 {[%clk 0:03:02.4]} 7... d6 {[%clk 0:03:02.2]} 8. c3 {[%clk 0:03:01.3]}
8... O-O {[%clk 0:03:02.1]} 9. h3 {[%clk 0:03:01.9]} 9... Bb7 {[%clk 0:03:01]}
10. d3 {[%clk 0:03:01.8]} 10... Na5 {[%clk 0:02:48.7]} 11. Bc2 {[%clk
0:03:01.7]} 11... c5 {[%clk 0:02:49]} 12. Nbd2 {[%clk 0:03:02.1]} 12... Re8
{[%clk 0:02:48.1]} 13. Nf1 {[%clk 0:03:01.2]} 13... Bf8 {[%clk 0:02:45.8]} 14.
Ng3 {[%clk 0:03:01.5]} 14... g6 {[%clk 0:02:43.9]} 15. Bg5 {[%clk 0:03:01.6]}
15... Be7 {[%clk 0:02:41.7]} 16. Qd2 {[%clk 0:02:59.3]} 16... Nd7 {[%clk
0:02:13.2]} 17. Bxe7 {[%clk 0:02:52.2]} 17... Qxe7 {[%clk 0:02:12.9]} 18. Rad1
{[%clk 0:02:52.8]} 18... Nf6 {[%clk 0:01:57.9]} 19. Re2 {[%clk 0:02:31.6]} 19...
Rad8 {[%clk 0:01:55.2]} 20. Rde1 {[%clk 0:02:31.7]} 20... Bc8 {[%clk 0:01:51.9]}
21. a3 {[%clk 0:02:29.5]} 21... Be6 {[%clk 0:01:51.2]} 22. Ng5 {[%clk
0:02:22.5]} 22... Bc8 {[%clk 0:01:41.3]} 23. f4 {[%clk 0:02:17.1]} 23... c4
{[%clk 0:01:36.9]} 24. d4 {[%clk 0:02:12.5]} 24... exf4 {[%clk 0:01:30.7]} 25.
Qxf4 {[%clk 0:02:10.8]} 25... Nc6 {[%clk 0:01:13.9]} 26. Rf1 {[%clk 0:02:09]}
26... Kg7 {[%clk 0:01:13.8]} 27. Ref2 {[%clk 0:01:59.7]} 27... Ng8 {[%clk
0:01:11.4]} 28. Qxf7+ {[%clk 0:01:56.2]} 28... Kh8 {[%clk 0:01:11.5]} 29. Qxe7
{[%clk 0:01:51.2]} 29... Rxe7 {[%clk 0:01:11.1]} 30. Nf7+ {[%clk 0:01:51.5]}
30... Kg7 {[%clk 0:01:09.2]} 31. Nxd8 {[%clk 0:01:51.2]} 31... Nxd8 {[%clk
0:01:09.7]} 32. Rf8 {[%clk 0:01:50.3]} 32... Rd7 {[%clk 0:01:01.5]} 33. Bd1
{[%clk 0:01:46]} 33... Nf7 {[%clk 0:01:00.8]} 34. Rxc8 {[%clk 0:01:45.2]} 1-0